Workbook

Sheet 指定請求書について
V1: 2023-09-01
A3: 弊社指定請求書について
T5: 株式会社ザイソウハウス
A7: １．様式について
A9: ・ | B9: 本請求書は、株式会社ザイソウハウスの指定請求書です。
A10: ・ | B10: 請求には必ず本様式をお使い下さい。
A11: ・ | B11: 請求書を手書きされる場合は「手書きの方はこちらを印刷して下さい」シートを印刷してご利用下さい。
B12: （「入力フォーム」シートにある「手書き用請求書印刷」のボタンをクリックして印刷できます。）
A16: ２．入力について
A18: ・ | B18: 入力は「入力フォーム」シートにお願い致します。
A19: ・ | D19: に網掛けされた部分に必要事項を記入して下さい。
A20: ・ | B20: 数量と単価は小数点第１位までの表記となります。
B21: 小数点第２位以下は入力前に調整して下さい。
A22: ・ | B22: 金額の欄には計算式が入っております。
B23: 小数点以下は切り捨てとなります。
A24: ・ | B24: 必ず税率区分の記入をお願い致します。
A25: ・ | B25: 必ず日付の欄に納品日もしくは作業日の記入をお願い致します。
A26: ・ | B26: ＜契約外＞の欄に記入しきれない場合は別紙で明細の添付（書式の指定無し）をお願い致します。
A30: ３．請求書の提出について
A32: ・ | B32: 請求書は原則現場単位でのご提出をお願い致します。
A33: ・ | B33: 請求書は「入力フォーム」シートにある「請求書印刷」のボタンをクリックして印刷して下さい。
B34: 「御社控え」と「提出用」の請求書が各１部づつ印刷されます。
B35: ※ | C35: 「入力フォーム」シートの「請求書印刷」と「手書き用請求書印刷」のボタンを
C36: 利用する場合、Excelのマクロ設定を有効にしていただく必要があります。
A37: ・ | B37: 右端に「提出用」と記載のある請求書に必ず社印の押印をお願い致します。
B38: 社印の無い請求書は受け付けることができませんのでご注意下さい。
A39: ・ | B39: 請求書はご郵送等でご提出下さい。

Sheet 入力見本
A1: 請 求 書
AW5: 年 | BB5: 月 | BG5: 日
A6: 株式会社ザイソウハウス 御中 | AC6: 適格請求書発行事業者登録の有無 | AR6: 有
AC8: 〒 | AG8: 460-0024
A9: 工事名
AC10: 住所 | AG10: 名古屋市中区正木
A12: ザイソウハウス | AC12: 氏名 | AG12: 株式会社〇〇〇〇 | BG12: ㊞
A13: 工事担当者名
AC14: TEL | AG14: 052-123-4567 | AS14: FAX | AW14: 052-123-4567
A16: 工 事 コード | O16: 区分 | R16: 外 | U16: 材 | X16: 経 | AC16: 登録番号 | AG16: Ｔ | AI16: 1 | AK16: 2 | AM16: 3 | AO16: 4 | AQ16: 5 | AS16: 6 | AU16: 7 | AW16: 8 | AY16: 9 | BA16: 1 | BC16: 2 | BE16: 3 | BG16: 4
R18: Ａ | U18: Ｂ | X18: Ｃ
AG19: ※新規あるいは変更のある場合のみ記入して下さい。
A21: ※以下、太線内に請求内容を記入し各工事現場ごとに提出して下さい | AC21: 振込銀行 | AI21: 三菱UFJ | AT21: 銀行 | AW21: 〇〇 | BF21: 支店
A23: ※別紙にて追加記入する場合は、タテ向Ａ４用紙を使用すること
AC24: 口座 | AI24: 普通 | AT24: № | AV24: 0123456789
A25: ＜契約分（税込表記）＞
A27: 契約№ | F27: 12345 | M27: 第 | O27: 2 | R27: 回目 | U27: 管理 | AC27: フリガナ | AI27: カブシキガイシャ〇〇〇〇
AC28: 口座名義 | AI28: 株式会社〇〇〇〇
A29: 契約内容 | F29: 大工手間
A32: 当月の契約分請求金額 ① | Y32: 550000 | AM32: 契約分査定（ア） （税込）
A34: 契約金額 | Y34: 2100000
A36: 出来高金額 | Y36: 561000 | AW36: ％
A38: 前月までの受領金額 | Y38: 11000
A40: ＜契約外（税込）＞ | K40: ※必ず日付を記入して下さい。（○／○～○／○と項目欄に記入も可）
A42: 日付 | D42: 項目 | R42: 税率 | T42: 単位 | V42: 数量 | Y42: 単価（税込） | AC42: 金額（税込） | AM42: 契約外査定 （税込） | AY42: 金額
AM43: (※は8％対象 *は非課税対象)
A44: ／ | D44: 大工手間（9/16～10/15） | R44: 0.1 | T44: 人工 | V44: 20 | Y44: 20000 | AC44: =ROUNDDOWN(Y44*V44,0) -> 400000
A46: 2023-09-20 | D46: 追加作業（詳細別紙参照） | R46: 0.1 | T46: 式 | V46: 1 | Y46: 5000 | AC46: =ROUNDDOWN(Y46*V46,0) -> 5000
A48: ／ | D48: 駐車場代（9/16～10/15） | R48: 0.1 | T48: 式 | V48: 1 | Y48: 5890 | AC48: =ROUNDDOWN(Y48*V48,0) -> 5890
A50: ／ | D50: 交通費（高速代含む）（9/16～10/15） | R50: 0.1 | T50: 式 | V50: 1 | Y50: 13560 | AC50: =ROUNDDOWN(Y50*V50,0) -> 13560
A52: 2023-09-30 | D52: 常用 | R52: 0.1 | T52: 人工 | V52: 1 | Y52: 20000 | AC52: =ROUNDDOWN(Y52*V52,0) -> 20000
A54: 2023-10-03 | D54: 金物購入 | R54: 0.1 | T54: 式 | V54: 1 | Y54: 33000 | AC54: =ROUNDDOWN(Y54*V54,0) -> 33000
A56: 2023-10-05 | D56: 食事代 | R56: 0.08 | T56: 式 | V56: 1 | Y56: 18533 | AC56: =ROUNDDOWN(Y56*V56,0) -> 18533 | AM56: 契約外査定 計（イ）
A58: 2023-10-08 | D58: 印紙代（1,000円） | R58: 非課税 | T58: 枚 | V58: 5 | Y58: 1000 | AC58: =ROUNDDOWN(Y58*V58,0) -> 5000 | AM58: 内消費税（10％）
AM59: 対象額（ ）
A60: ／ | AC60: =ROUNDDOWN(Y60*V60,0) -> 0 | AM60: 内消費税（ 8％） ※
AM61: 対象額（ ）
A62: ／ | AC62: =ROUNDDOWN(Y62*V62,0) -> 0 | AM62: 内非課税 *
AM63: 対象額（ ）
A64: ／ | AC64: =ROUNDDOWN(Y64*V64,0) -> 0
A66: ／ | AC66: =ROUNDDOWN(Y66*V66,0) -> 0 | AM66: 立替項目 （税込） | AY66: 金額
AM67: (※は8％対象 *は非課税対象)
A68: 小計 | AC68: =SUM(AC44:AK67) -> 500983
A70: 対象額 | E70: （ | F70: =SUMIF(R44:S67,10%,AC44:AK67) -> 477450 | P70: ） | Q70: 内消費税額（10％） | AC70: =ROUNDDOWN((F70*0.1)/1.1,0) -> 43404
A72: 対象額 | E72: （ | F72: =SUMIF(R44:S67,8%,AC44:AK67) -> 18533 | P72: ） | Q72: 内消費税額（ 8％） | AC72: =ROUNDDOWN((F72*0.08)/1.08,0) -> 1372
A74: 対象額 | E74: （ | F74: =SUMIF(R44:S67,"非課税",AC44:AK67) -> 5000 | P74: ） | Q74: 内非課税 | AM74: 立替相殺 計（ウ）
AM76: 内消費税（10％）
AM77: 対象額（ ）
AM78: 内消費税（ 8％） ※
AM79: 対象額（ ）
A80: 当月請求金額 合計①＋② | Y80: =AC68+Y32 -> 1050983 | AM80: 内非課税 *
AM81: 対象額（ ）
A83: 担当 | F83: 課長 | K83: 部長 | P83: 専務 | U83: 管理 | AJ83: 支払日 | AV83: 年 | BA83: 月 | BG83: 日
AJ84: 支払金額（税込） 合計（ア）+（イ）-（ウ）

Sheet 入力フォーム
A1: 請 求 書 | BK1: 以下のボタンはマクロの設定を有効にしてご利用下さい。
BM4: の箇所に入力をお願い致します。
AW5: 年 | BB5: 月 | BG5: 日
A6: 株式会社ザイソウハウス 御中 | AC6: 適格請求書発行事業者登録の有無 | BK6: こちらをクリックして請求書を
AC8: 〒 | BK8: 印刷して下さい。
A9: 工事名
AC10: 住所
A12: ザイソウハウス | AC12: 氏名 | BG12: ㊞
A13: 工事担当者名
AC14: TEL | AS14: FAX
A16: 工 事 コード | O16: 区分 | R16: 外 | U16: 材 | X16: 経 | AC16: 登録番号 | AG16: Ｔ
R18: Ａ | U18: Ｂ | X18: Ｃ
AC19: ※新規あるいは変更のある場合のみ記入して下さい。
BK20: 手書きの方はこちらから請求書を
A21: ※以下、太線内に請求内容を記入し各工事現場ごとに提出して下さい。 | AC21: 振込銀行 | AT21: 銀行 | BF21: 支店
BK22: 印刷してご利用下さい。
A23: ※別紙にて追加記入する場合は、タテ向Ａ４用紙を使用すること。
AC24: 口座 | AT24: №
A25: ＜契約分（税込）＞
A27: 契約№ | M27: 第 | R27: 回目 | U27: 管理 | AC27: フリガナ
AC28: 口座名義
A29: 契約内容
A32: 当月の契約分請求金額① | AM32: 契約分査定（ア） （税込）
A34: 契約金額
A36: 出来高金額 | AW36: ％
A38: 前月までの受領金額
A40: ＜契約外（税込）＞ | K40: ※必ず日付を記入して下さい。（○／○～○／○と項目欄に記入も可）
A42: 日付 | D42: 項目 | R42: 税率 | T42: 単位 | V42: 数量 | Y42: 単価（税込） | AC42: 金額（税込） | AM42: 契約外査定 （税込） | AY42: 金額
AM43: (※は8％対象 *は非課税対象)
A44: ／ | AC44: =ROUNDDOWN(Y44*V44,0) -> 0
A46: ／ | AC46: =ROUNDDOWN(Y46*V46,0) -> 0
A48: ／ | AC48: =ROUNDDOWN(Y48*V48,0) -> 0
A50: ／ | AC50: =ROUNDDOWN(Y50*V50,0) -> 0
A52: ／ | AC52: =ROUNDDOWN(Y52*V52,0) -> 0
A54: ／ | AC54: =ROUNDDOWN(Y54*V54,0) -> 0
A56: ／ | AC56: =ROUNDDOWN(Y56*V56,0) -> 0 | AM56: 契約外査定 計（イ）
A58: ／ | AC58: =ROUNDDOWN(Y58*V58,0) -> 0 | AM58: 内消費税（10％）
AM59: 対象額（ ）
A60: ／ | AC60: =ROUNDDOWN(Y60*V60,0) -> 0 | AM60: 内消費税（ 8％） ※
AM61: 対象額（ ）
A62: ／ | AC62: =ROUNDDOWN(Y62*V62,0) -> 0 | AM62: 内非課税 *
AM63: 対象額（ ）
A64: ／ | AC64: =ROUNDDOWN(Y64*V64,0) -> 0
A66: ／ | AC66: =ROUNDDOWN(Y66*V66,0) -> 0 | AM66: 立替項目 （税込） | AY66: 金額
AM67: (※は8％対象 *は非課税対象)
A68: ／ | AC68: =ROUNDDOWN(Y68*V68,0) -> 0
A70: 契約外請求額 計 ② | AC70: =SUM(AC44:AK69) -> 0
A72: 対象額 | E72: （ | F72: =SUMIF(R44:S69,10%,AC44:AK69) -> 0 | P72: ） | Q72: 内消費税額（10％） | AC72: =ROUNDDOWN((F72*0.1)/1.1,0) -> 0
A74: 対象額 | E74: （ | F74: =SUMIF(R44:S69,8%,AC44:AK69) -> 0 | P74: ） | Q74: 内消費税額（ 8％） | AC74: =ROUNDDOWN((F74*0.08)/1.08,0) -> 0 | AM74: 立替相殺 計（ウ）
A76: 対象額 | E76: （ | F76: =SUMIF(R44:S69,"非課税",AC44:AK69) -> 0 | P76: ） | Q76: 内非課税 | AM76: 内消費税（10％）
AM77: 対象額（ ）
AM78: 内消費税（ 8％） ※
AM79: 対象額（ ）
A80: 当月請求金額 合計①＋② | Y80: =AC70+Y32 -> 0 | AM80: 内非課税 *
AM81: 対象額（ ）
A83: 担当 | F83: 課長 | K83: 部長 | P83: 専務 | U83: 管理 | AJ83: 支払日 | AV83: 年 | BA83: 月 | BG83: 日
AJ84: 支払金額（税込） 合計（ア）+（イ）-（ウ）

Sheet 御社控え
A1: 請 求 書
AS5: =入力フォーム!AS5 -> 0 | AW5: 年 | AY5: =入力フォーム!AY5 -> 0 | BB5: 月 | BD5: =入力フォーム!BD5 -> 0 | BG5: 日
A6: 株式会社ザイソウハウス 御中 | AC6: 適格請求書発行事業者登録の有無 | AR6: =入力フォーム!AR6 -> 0
AC8: 〒 | AG8: =入力フォーム!AG8 -> 0
A9: 工事名 | F9: =入力フォーム!F9 -> 0
AC10: 住所 | AG10: =入力フォーム!AG10 -> 0
A12: ザイソウハウス | F12: =入力フォーム!F12 -> 0 | AC12: 氏名 | AG12: =入力フォーム!AG12 -> 0 | BG12: ㊞
A13: 工事担当者名
AC14: TEL | AG14: =入力フォーム!AG14 -> 0 | AS14: FAX | AW14: =入力フォーム!AW14 -> 0
A16: 工 事 コード | O16: 区分 | R16: 外 | U16: 材 | X16: 経 | AC16: 登録番号 | AG16: Ｔ | AI16: =入力フォーム!AI16 -> 0 | AK16: =入力フォーム!AK16 -> 0 | AM16: =入力フォーム!AM16 -> 0 | AO16: =入力フォーム!AO16 -> 0 | AQ16: =入力フォーム!AQ16 -> 0 | AS16: =入力フォーム!AS16 -> 0 | AU16: =入力フォーム!AU16 -> 0 | AW16: =入力フォーム!AW16 -> 0 | AY16: =入力フォーム!AY16 -> 0 | BA16: =入力フォーム!BA16 -> 0 | BC16: =入力フォーム!BC16 -> 0 | BE16: =入力フォーム!BE16 -> 0 | BG16: =入力フォーム!BG16 -> 0
R18: Ａ | U18: Ｂ | X18: Ｃ
AC19: ※新規あるいは変更のある場合のみ記入して下さい。
A21: ※以下、太線内に請求内容を記入し各工事現場ごとに提出して下さい。 | AC21: 振込銀行 | AI21: =入力フォーム!AI21 -> 0 | AT21: =入力フォーム!AT21 -> 銀行 | AW21: =入力フォーム!AW21 -> 0 | BF21: =入力フォーム!BF21 -> 支店
A23: ※別紙にて追加記入する場合は、タテ向Ａ４用紙を使用すること。
AC24: 口座 | AI24: =入力フォーム!AI24 ->  | AT24: № | AV24: =入力フォーム!AV24 -> 0
A25: ＜契約分（税込）＞
A27: 契約№ | F27: =入力フォーム!F27 -> 0 | M27: 第 | O27: =入力フォーム!O27 -> 0 | R27: 回目 | AC27: フリガナ | AI27: =入力フォーム!AI27 -> 0
AC28: 口座名義 | AI28: =入力フォーム!AI28 -> 0
A29: 契約内容 | F29: =入力フォーム!F29 -> 0
A32: 当月の契約分請求金額 ① | Y32: =入力フォーム!Y32 -> 0 | AM32: 契約分査定（ア） （税込）
A34: 契約金額 | Y34: =入力フォーム!Y34 -> 0
A36: 出来高金額 | Y36: =入力フォーム!Y36 -> 0 | AW36: ％
A38: 前月までの受領金額 | Y38: =入力フォーム!Y38 -> 0
A40: ＜契約外（税込）＞ | K40: ※必ず日付を記入して下さい。（○／○～○／○と項目欄に記入も可）
A42: 日付 | D42: 項目 | R42: 税率 | T42: 単位 | V42: 数量 | Y42: 単価（税込） | AC42: 金額（税込） | AM42: 契約外査定 （税込） | AY42: 金額
AM43: (※は8％対象 *は非課税対象)
A44: =入力フォーム!A44 -> ／ | D44: =入力フォーム!D44 -> 0 | R44: =入力フォーム!R44 -> 0 | T44: =入力フォーム!T44 -> 0 | V44: =入力フォーム!V44 -> 0 | Y44: =入力フォーム!Y44 -> 0 | AC44: =入力フォーム!AC44 -> 0
A46: =入力フォーム!A46 -> ／ | D46: =入力フォーム!D46 -> 0 | R46: =入力フォーム!R46 -> 0 | T46: =入力フォーム!T46 -> 0 | V46: =入力フォーム!V46 -> 0 | Y46: =入力フォーム!Y46 -> 0 | AC46: =入力フォーム!AC46 -> 0
A48: =入力フォーム!A48 -> ／ | D48: =入力フォーム!D48 -> 0 | R48: =入力フォーム!R48 -> 0 | T48: =入力フォーム!T48 -> 0 | V48: =入力フォーム!V48 -> 0 | Y48: =入力フォーム!Y48 -> 0 | AC48: =入力フォーム!AC48 -> 0
A50: =入力フォーム!A50 -> ／ | D50: =入力フォーム!D50 -> 0 | R50: =入力フォーム!R50 -> 0 | T50: =入力フォーム!T50 -> 0 | V50: =入力フォーム!V50 -> 0 | Y50: =入力フォーム!Y50 -> 0 | AC50: =入力フォーム!AC50 -> 0
A52: =入力フォーム!A52 -> ／ | D52: =入力フォーム!D52 -> 0 | R52: =入力フォーム!R52 -> 0 | T52: =入力フォーム!T52 -> 0 | V52: =入力フォーム!V52 -> 0 | Y52: =入力フォーム!Y52 -> 0 | AC52: =入力フォーム!AC52 -> 0
A54: =入力フォーム!A54 -> ／ | D54: =入力フォーム!D54 -> 0 | R54: =入力フォーム!R54 -> 0 | T54: =入力フォーム!T54 -> 0 | V54: =入力フォーム!V54 -> 0 | Y54: =入力フォーム!Y54 -> 0 | AC54: =入力フォーム!AC54 -> 0
A56: =入力フォーム!A56 -> ／ | D56: =入力フォーム!D56 -> 0 | R56: =入力フォーム!R56 -> 0 | T56: =入力フォーム!T56 -> 0 | V56: =入力フォーム!V56 -> 0 | Y56: =入力フォーム!Y56 -> 0 | AC56: =入力フォーム!AC56 -> 0 | AM56: 契約外査定 計（イ）
A58: =入力フォーム!A58 -> ／ | D58: =入力フォーム!D58 -> 0 | R58: =入力フォーム!R58 -> 0 | T58: =入力フォーム!T58 -> 0 | V58: =入力フォーム!V58 -> 0 | Y58: =入力フォーム!Y58 -> 0 | AC58: =入力フォーム!AC58 -> 0 | AM58: 内消費税（10％）
AM59: 対象額（ ）
A60: =入力フォーム!A60 -> ／ | D60: =入力フォーム!D60 -> 0 | R60: =入力フォーム!R60 -> 0 | T60: =入力フォーム!T60 -> 0 | V60: =入力フォーム!V60 -> 0 | Y60: =入力フォーム!Y60 -> 0 | AC60: =入力フォーム!AC60 -> 0 | AM60: 内消費税（ 8％） ※
AM61: 対象額（ ）
A62: =入力フォーム!A62 -> ／ | D62: =入力フォーム!D62 -> 0 | R62: =入力フォーム!R62 -> 0 | T62: =入力フォーム!T62 -> 0 | V62: =入力フォーム!V62 -> 0 | Y62: =入力フォーム!Y62 -> 0 | AC62: =入力フォーム!AC62 -> 0 | AM62: 内非課税 *
AM63: 対象額（ ）
A64: =入力フォーム!A64 -> ／ | D64: =入力フォーム!D64 -> 0 | R64: =入力フォーム!R64 -> 0 | T64: =入力フォーム!T64 -> 0 | V64: =入力フォーム!V64 -> 0 | Y64: =入力フォーム!Y64 -> 0 | AC64: =入力フォーム!AC64 -> 0
A66: =入力フォーム!A66 -> ／ | D66: =入力フォーム!D66 -> 0 | R66: =入力フォーム!R66 -> 0 | T66: =入力フォーム!T66 -> 0 | V66: =入力フォーム!V66 -> 0 | Y66: =入力フォーム!Y66 -> 0 | AC66: =入力フォーム!AC66 -> 0 | AM66: 立替項目 （税込） | AY66: 金額
AM67: (※は8％対象 *は非課税対象)
A68: =入力フォーム!A68 -> ／ | D68: =入力フォーム!D68 -> 0 | R68: =入力フォーム!R68 -> 0 | T68: =入力フォーム!T68 -> 0 | V68: =入力フォーム!V68 -> 0 | Y68: =入力フォーム!Y68 -> 0 | AC68: =入力フォーム!AC68 -> 0
A70: 小計 | AC70: =入力フォーム!AC70 -> 0
A72: 対象額 | E72: （ | F72: =入力フォーム!F72 -> 0 | P72: ） | Q72: 内消費税額（10％） | AC72: =入力フォーム!AC72 -> 0
A74: 対象額 | E74: （ | F74: =入力フォーム!F74 -> 0 | P74: ） | Q74: 内消費税額（ 8％） | AC74: =入力フォーム!AC74 -> 0 | AM74: 立替相殺 計（ウ）
A76: 対象額 | E76: （ | F76: =入力フォーム!F76 -> 0 | P76: ） | Q76: 内非課税 | AM76: 内消費税（10％）
AM77: 対象額（ ）
AM78: 内消費税（ 8％） ※
AM79: 対象額（ ）
A80: 当月請求金額 合計①＋② | Y80: =入力フォーム!Y80 -> 0 | AM80: 内非課税 *
AM81: 対象額（ ）

Sheet 提出用
A1: 請 求 書
AS5: =御社控え!AS5:AV5 -> 0 | AW5: 年 | AY5: =御社控え!AY5:BA5 -> 0 | BB5: 月 | BD5: =御社控え!BD5:BF5 -> 0 | BG5: 日
A6: 株式会社ザイソウハウス 御中 | AC6: 適格請求書発行事業者登録の有無 | AR6: =御社控え!AR6:BH7 -> 0
AC8: 〒 | AG8: =御社控え!AG8 -> 0
A9: 工事名 | F9: =御社控え!F9 -> 0
AC10: 住所 | AG10: =御社控え!AG10:BH11 -> 0
A12: ザイソウハウス | F12: =御社控え!F12 -> 0 | AC12: 氏名 | AG12: =御社控え!AG12:BF13 -> 0 | BG12: ㊞
A13: 工事担当者名
AC14: TEL | AG14: =御社控え!AG14:AR15 -> 0 | AS14: FAX | AW14: =御社控え!AW14:BH15 -> 0
A16: 工 事 コード | O16: 区分 | R16: 外 | U16: 材 | X16: 経 | AC16: 登録番号 | AG16: Ｔ | AI16: =御社控え!AI16:AJ18 -> 0 | AK16: =御社控え!AK16:AL18 -> 0 | AM16: =御社控え!AM16:AN18 -> 0 | AO16: =御社控え!AO16:AP18 -> 0 | AQ16: =御社控え!AQ16:AR18 -> 0 | AS16: =御社控え!AS16:AT18 -> 0 | AU16: =御社控え!AU16:AV18 -> 0 | AW16: =御社控え!AW16:AX18 -> 0 | AY16: =御社控え!AY16:AZ18 -> 0 | BA16: =御社控え!BA16:BB18 -> 0 | BC16: =御社控え!BC16:BD18 -> 0 | BE16: =御社控え!BE16:BF18 -> 0 | BG16: =御社控え!BG16:BH18 -> 0
R18: Ａ | U18: Ｂ | X18: Ｃ
AC19: ※新規あるいは変更のある場合のみ記入して下さい。
A21: ※以下、太線内に請求内容を記入し各工事現場ごとに提出して下さい。 | AC21: 振込銀行 | AI21: =御社控え!AI21:AS23 -> 0 | AT21: =御社控え!AT21 -> 銀行 | AW21: =御社控え!AW21:BE23 -> 0 | BF21: =御社控え!BF21 -> 支店
A23: ※別紙にて追加記入する場合は、タテ向Ａ４用紙を使用すること。
AC24: 口座 | AI24: =御社控え!AI24:AS26 ->  | AT24: № | AV24: =御社控え!AV24:BH26 -> 0
A25: ＜契約分（税込）＞
A27: 契約№ | F27: =御社控え!F27:L28 -> 0 | M27: 第 | O27: =御社控え!O27:Q28 -> 0 | R27: 回目 | U27: 管理 | AC27: フリガナ | AI27: =御社控え!AI27:BH27 -> 0
AC28: 口座名義 | AI28: =御社控え!AI28:BH30 -> 0
A29: 契約内容 | F29: =御社控え!F29:T31 -> 0
A32: 当月の契約分請求金額 ① | Y32: =御社控え!Y32:AK33 -> 0 | AM32: 契約分査定（ア） （税込）
A34: 契約金額 | Y34: =御社控え!Y34:AK35 -> 0
A36: 出来高金額 | Y36: =御社控え!Y36:AK37 -> 0 | AW36: ％
A38: 前月までの受領金額 | Y38: =御社控え!Y38:AK39 -> 0
A40: ＜契約外（税込）＞ | K40: ※必ず日付を記入して下さい。（○／○～○／○と項目欄に記入も可）
A42: 日付 | D42: 項目 | R42: 税率 | T42: 単位 | V42: 数量 | Y42: 単価（税込） | AC42: 金額（税込） | AM42: 契約外査定 （税込） | AY42: 金額
AM43: (※は8％対象 *は非課税対象)
A44: =御社控え!A44:C45 -> ／ | D44: =御社控え!D44:Q45 -> 0 | R44: =御社控え!R44:S45 -> 0 | T44: =御社控え!T44:U45 -> 0 | V44: =御社控え!V44:X45 -> 0 | Y44: =御社控え!Y44:AB45 -> 0 | AC44: =御社控え!AC44:AK45 -> 0
A46: =御社控え!A46:C47 -> ／ | D46: =御社控え!D46:Q47 -> 0 | R46: =御社控え!R46:S47 -> 0 | T46: =御社控え!T46:U47 -> 0 | V46: =御社控え!V46:X47 -> 0 | Y46: =御社控え!Y46:AB47 -> 0 | AC46: =御社控え!AC46:AK47 -> 0
A48: =御社控え!A48:C49 -> ／ | D48: =御社控え!D48:Q49 -> 0 | R48: =御社控え!R48:S49 -> 0 | T48: =御社控え!T48:U49 -> 0 | V48: =御社控え!V48:X49 -> 0 | Y48: =御社控え!Y48:AB49 -> 0 | AC48: =御社控え!AC48:AK49 -> 0
A50: =御社控え!A50:C51 -> ／ | D50: =御社控え!D50:Q51 -> 0 | R50: =御社控え!R50:S51 -> 0 | T50: =御社控え!T50:U51 -> 0 | V50: =御社控え!V50:X51 -> 0 | Y50: =御社控え!Y50:AB51 -> 0 | AC50: =御社控え!AC50:AK51 -> 0
A52: =御社控え!A52:C53 -> ／ | D52: =御社控え!D52:Q53 -> 0 | R52: =御社控え!R52:S53 -> 0 | T52: =御社控え!T52:U53 -> 0 | V52: =御社控え!V52:X53 -> 0 | Y52: =御社控え!Y52:AB53 -> 0 | AC52: =御社控え!AC52:AK53 -> 0
A54: =御社控え!A54:C55 -> ／ | D54: =御社控え!D54:Q55 -> 0 | R54: =御社控え!R54:S55 -> 0 | T54: =御社控え!T54:U55 -> 0 | V54: =御社控え!V54:X55 -> 0 | Y54: =御社控え!Y54:AB55 -> 0 | AC54: =御社控え!AC54:AK55 -> 0
A56: =御社控え!A56:C57 -> ／ | D56: =御社控え!D56:Q57 -> 0 | R56: =御社控え!R56:S57 -> 0 | T56: =御社控え!T56:U57 -> 0 | V56: =御社控え!V56:X57 -> 0 | Y56: =御社控え!Y56:AB57 -> 0 | AC56: =御社控え!AC56:AK57 -> 0 | AM56: 契約外査定 計（イ）
A58: =御社控え!A58:C59 -> ／ | D58: =御社控え!D58:Q59 -> 0 | R58: =御社控え!R58:S59 -> 0 | T58: =御社控え!T58:U59 -> 0 | V58: =御社控え!V58:X59 -> 0 | Y58: =御社控え!Y58:AB59 -> 0 | AC58: =御社控え!AC58:AK59 -> 0 | AM58: 内消費税（10％）
AM59: 対象額（ ）
A60: =御社控え!A60:C61 -> ／ | D60: =御社控え!D60:Q61 -> 0 | R60: =御社控え!R60:S61 -> 0 | T60: =御社控え!T60:U61 -> 0 | V60: =御社控え!V60:X61 -> 0 | Y60: =御社控え!Y60:AB61 -> 0 | AC60: =御社控え!AC60:AK61 -> 0 | AM60: 内消費税（ 8％） ※
AM61: 対象額（ ）
A62: =御社控え!A62:C63 -> ／ | D62: =御社控え!D62:Q63 -> 0 | R62: =御社控え!R62:S63 -> 0 | T62: =御社控え!T62:U63 -> 0 | V62: =御社控え!V62:X63 -> 0 | Y62: =御社控え!Y62:AB63 -> 0 | AC62: =御社控え!AC62:AK63 -> 0 | AM62: 内非課税 *
AM63: 対象額（ ）
A64: =御社控え!A64:C65 -> ／ | D64: =御社控え!D64:Q65 -> 0 | R64: =御社控え!R64:S65 -> 0 | T64: =御社控え!T64:U65 -> 0 | V64: =御社控え!V64:X65 -> 0 | Y64: =御社控え!Y64:AB65 -> 0 | AC64: =御社控え!AC64:AK65 -> 0
A66: =御社控え!A66:C67 -> ／ | D66: =御社控え!D66:Q67 -> 0 | R66: =御社控え!R66:S67 -> 0 | T66: =御社控え!T66:U67 -> 0 | V66: =御社控え!V66:X67 -> 0 | Y66: =御社控え!Y66:AB67 -> 0 | AC66: =御社控え!AC66:AK67 -> 0 | AM66: 立替項目 （税込） | AY66: 金額
AM67: (※は8％対象 *は非課税対象)
A68: =御社控え!A68:C69 -> ／ | D68: =御社控え!D68:Q69 -> 0 | R68: =御社控え!R68:S69 -> 0 | T68: =御社控え!T68:U69 -> 0 | V68: =御社控え!V68:X69 -> 0 | Y68: =御社控え!Y68:AB69 -> 0 | AC68: =御社控え!AC68:AK69 -> 0
A70: 小計 | AC70: =御社控え!AC70:AK71 -> 0
A72: 対象額 | E72: （ | F72: =御社控え!F72:O73 -> 0 | P72: ） | Q72: 内消費税額（10％） | AC72: =御社控え!AC72:AK73 -> 0
A74: 対象額 | E74: （ | F74: =御社控え!F74:O75 -> 0 | P74: ） | Q74: 内消費税額（ 8％） | AC74: =御社控え!AC74:AK75 -> 0 | AM74: 立替相殺 計（ウ）
A76: 対象額 | E76: （ | F76: =御社控え!F76:O77 -> 0 | P76: ） | Q76: 内非課税 | AM76: 内消費税（10％）
AM77: 対象額（ ）
AM78: 内消費税（ 8％） ※
AM79: 対象額（ ）
A80: 当月請求金額 合計①＋② | Y80: =御社控え!Y80:AK81 -> 0 | AM80: 内非課税 *
AM81: 対象額（ ）
A83: 担当 | F83: 課長 | K83: 部長 | P83: 専務 | U83: 管理 | AJ83: 支払日 | AV83: 年 | BA83: 月 | BG83: 日
AJ84: 支払金額（税込） 合計（ア）+（イ）-（ウ）

Sheet 手書きの方はこちらを印刷して下さい
A1: 請 求 書
AW5: 年 | BB5: 月 | BG5: 日
A6: 株式会社ザイソウハウス 御中 | AC6: 適格請求書発行事業者登録の有無 | AR6: □ 有 ・ □ 無
AC8: 〒
A9: 工事名
AC10: 住所
A12: ザイソウハウス | AC12: 氏名 | BG12: ㊞
A13: 工事担当者名
AC14: TEL | AS14: FAX
A16: 工 事 コード | O16: 区分 | R16: 外 | U16: 材 | X16: 経 | AC16: 登録番号 | AG16: Ｔ
R18: Ａ | U18: Ｂ | X18: Ｃ
AC19: ※新規あるいは変更のある場合のみ記入して下さい。
A21: ※以下、太線内に請求内容を記入し各工事現場ごとに提出して下さい。 | AC21: 振込銀行 | AT21: 銀行 | BF21: 支店
A23: ※別紙にて追加記入する場合は、タテ向Ａ４用紙を使用すること。
AC24: 口座 | AI24: 普通 ・ 当座 | AT24: №
A25: ＜契約分（税込）＞
A27: 契約№ | M27: 第 | R27: 回目 | U27: 管理 | AC27: フリガナ
AC28: 口座名義
A29: 契約内容
A32: 当月の契約分請求金額① | AM32: 契約分査定（ア） （税込）
A34: 契約金額
A36: 出来高金額 | AW36: ％
A38: 前月までの受領金額
A40: ＜契約外（税込）＞ | K40: ※必ず日付を記入して下さい。（○／○～○／○と項目欄に記入も可）
A42: 日付 | D42: 項目 | R42: 税率 | T42: 単位 | V42: 数量 | Y42: 単価（税込） | AC42: 金額（税込） | AM42: 契約外査定 （税込） | AY42: 金額
AM43: (※は8％対象 *は非課税対象)
A44: ／
A46: ／
A48: ／
A50: ／
A52: ／
A54: ／
A56: ／ | AM56: 契約外査定 計（イ）
A58: ／ | AM58: 内消費税（10％）
AM59: 対象額（ ）
A60: ／ | AM60: 内消費税（ 8％） ※
AM61: 対象額（ ）
A62: ／ | AM62: 内非課税 *
AM63: 対象額（ ）
A64: ／
A66: ／ | AM66: 立替項目 （税込） | AY66: 金額
AM67: (※は8％対象 *は非課税対象)
A68: ／
A70: 小計
A72: 対象額 | E72: （ | P72: ） | Q72: 内消費税額（10％）
A74: 対象額 | E74: （ | P74: ） | Q74: 内消費税額（ 8％） | AM74: 立替相殺 計（ウ）
A76: 対象額 | E76: （ | P76: ） | Q76: 内非課税 | AM76: 内消費税（10％）
AM77: 対象額（ ）
AM78: 内消費税（ 8％） ※
AM79: 対象額（ ）
A80: 当月請求金額 合計①＋② | AM80: 内非課税 *
AM81: 対象額（ ）
A83: 担当 | F83: 課長 | K83: 部長 | P83: 専務 | U83: 管理 | AJ83: 支払日 | AV83: 年 | BA83: 月 | BG83: 日
AJ84: 支払金額（税込） 合計（ア）+（イ）-（ウ）
A88: 請 求 書
AW92: 年 | BB92: 月 | BG92: 日
A93: 株式会社ザイソウハウス 御中 | AC93: 適格請求書発行事業者登録の有無 | AR93: □ 有 ・ □ 無
AC95: 〒
A96: 工事名
AC97: 住所
A99: ザイソウハウス | AC99: 氏名 | BG99: ㊞
A100: 工事担当者名
AC101: TEL | AS101: FAX
A103: 工 事 コード | O103: 区分 | R103: 外 | U103: 材 | X103: 経 | AC103: 登録番号 | AG103: Ｔ
R105: Ａ | U105: Ｂ | X105: Ｃ
AC106: ※新規あるいは変更のある場合のみ記入して下さい。
A108: ※以下、太線内に請求内容を記入し各工事現場ごとに提出して下さい。 | AC108: 振込銀行 | AT108: 銀行 | BF108: 支店
A110: ※別紙にて追加記入する場合は、タテ向Ａ４用紙を使用すること。
AC111: 口座 | AI111: 普通 ・ 当座 | AT111: №
A112: ＜契約分（税込）＞
A114: 契約№ | M114: 第 | R114: 回目 | AC114: フリガナ
AC115: 口座名義
A116: 契約内容
A119: 当月の契約分請求金額① | AM119: 契約分査定（ア） （税込）
A121: 契約金額
A123: 出来高金額 | AW123: ％
A125: 前月までの受領金額
A127: ＜契約外（税込）＞ | K127: ※必ず日付を記入して下さい。（○／○～○／○と項目欄に記入も可）
A129: 日付 | D129: 項目 | R129: 税率 | T129: 単位 | V129: 数量 | Y129: 単価（税込） | AC129: 金額（税込） | AM129: 契約外査定 （税込） | AY129: 金額
AM130: (※は8％対象 *は非課税対象)
A131: ／
A133: ／
A135: ／
A137: ／
A139: ／
A141: ／
A143: ／ | AM143: 契約外査定 計（イ）
A145: ／ | AM145: 内消費税（10％）
AM146: 対象額（ ）
A147: ／ | AM147: 内消費税（ 8％） ※
AM148: 対象額（ ）
A149: ／ | AM149: 内非課税 *
AM150: 対象額（ ）
A151: ／
A153: ／ | AM153: 立替項目 （税込） | AY153: 金額
AM154: (※は8％対象 *は非課税対象)
A155: ／
A157: 小計
A159: 対象額 | E159: （ | P159: ） | Q159: 内消費税額（10％）
A161: 対象額 | E161: （ | P161: ） | Q161: 内消費税額（ 8％） | AM161: 立替相殺 計（ウ）
A163: 対象額 | E163: （ | P163: ） | Q163: 内非課税 | AM163: 内消費税（10％）
AM164: 対象額（ ）
AM165: 内消費税（ 8％） ※
AM166: 対象額（ ）
A167: 当月請求金額 合計①＋② | AM167: 内非課税 *
AM168: 対象額（ ）
